fUSD/lending_fUSD_20260530
["ID","MTS","AMOUNT","RATE_DAILY","PERIOD"]
[423467728,1780146632000,-500.0,0.00011951,2]
[423467760,1780146632000,-1495.08,0.00011987,2]
[423467696,1780146632000,-500.0,0.00011951,2]
[423467699,1780146632000,-500.0,0.00011951,2]
[423467698,1780146632000,-500.0,0.00011951,2]
[423467697,1780146632000,-500.0,0.00011951,2]
[423467715,1780146632000,-500.0,0.00011951,2]
[423467707,1780146632000,-500.0,0.00011951,2]
[423467717,1780146632000,-500.0,0.00011951,2]
[423467701,1780146632000,-500.0,0.00011951,2]
[423467722,1780146632000,-500.0,0.00011951,2]
[423467711,1780146632000,-500.0,0.00011951,2]
[423467709,1780146632000,-500.0,0.00011951,2]
[423467713,1780146632000,-500.0,0.00011951,2]
[423467705,1780146632000,-500.0,0.00011951,2]
[423467718,1780146632000,-500.0,0.00011951,2]
[423467720,1780146632000,-500.0,0.00011951,2]
[423467721,1780146632000,-500.0,0.00011951,2]
[423467719,1780146632000,-450.0,0.00011951,2]
[423467736,1780146632000,-500.0,0.00011951,2]
[423467738,1780146632000,-500.0,0.00011951,2]
[423467703,1780146632000,-500.0,0.00011951,2]
[423467761,1780146632000,-492.74,0.00011997,2]
[423467756,1780146632000,-500.0,0.00011951,2]
[423467757,1780146632000,-250.0,0.00011951,2]
[423467787,1780146632000,-179.16,0.00012357,2]
[423467790,1780146632000,-179.16,0.00012658,2]
[423467788,1780146632000,-300.0,0.000124,2]
[423467789,1780146632000,-170.93,0.00012451,2]
[423467792,1780146632000,-3000.0,0.00012808,2]
[423467791,1780146632000,-170.93,0.00012754,2]
[423467794,1780146632000,-179.16,0.0001296,2]
[423467793,1780146632000,-166.5,0.00012899,2]
[423467796,1780146632000,-197.54,0.00013065,2]
[423467785,1780146632000,-184.9,0.00012287,2]
[423467798,1780146632000,-574.86,0.00013067,2]
[423467795,1780146632000,-255.0,0.00013026,2]
[423467799,1780146632000,-601.34,0.00013068,2]
[423467801,1780146632000,-574.86,0.0001307,2]
[423467800,1780146632000,-574.86,0.0001307,2]
[423467802,1780146632000,-574.86,0.0001307,2]
[423467805,1780146632000,-730.74,0.00013071,2]
[423467806,1780146632000,-1662.06,0.00013071,2]
[423467807,1780146632000,-3975.73957893,0.00013072,2]
[423467803,1780146632000,-572.6,0.00013071,2]
[423467797,1780146632000,-572.6,0.00013065,2]
[423467786,1780146632000,-661.76,0.00012329,2]
[423467762,1780146632000,-179.16,0.00012055,2]
[423467779,1780146632000,-1584.63,0.00012272,2]
[423467759,1780146632000,-200.0,0.00011964,2]
[423467764,1780146632000,-170.93,0.00012147,2]
[423467767,1780146632000,-183.66,0.00012247,2]
[423467804,1780146632000,-395.79,0.00013071,2]
[423467766,1780146632000,-574.86,0.00012245,2]
[423467765,1780146632000,-2000.0,0.00012147,2]
[423467769,1780146632000,-572.6,0.00012256,2]
[423467768,1780146632000,-395.79,0.00012248,2]
[423467771,1780146632000,-395.79,0.00012257,2]
[423467770,1780146632000,-574.86,0.00012257,2]
[423467784,1780146632000,-569.24,0.00012278,2]
[423467774,1780146632000,-572.6,0.00012259,2]
[423467773,1780146632000,-481.78,0.00012259,2]
[423467783,1780146632000,-481.78,0.00012278,2]
[423467780,1780146632000,-481.78,0.00012272,2]
[423467781,1780146632000,-574.86,0.00012272,2]
[423467782,1780146632000,-184.9,0.00012278,2]
[423467777,1780146632000,-184.9,0.00012272,2]
[423467778,1780146632000,-572.81,0.00012272,2]
[423467772,1780146632000,-395.79,0.00012259,2]
[423467775,1780146632000,-574.86,0.00012259,2]
[423467776,1780146632000,-481.78,0.00012264,2]
[423467840,1780146633000,-434.15,0.00013094,2]
[423467831,1780146633000,-1584.63,0.00013094,2]
[423467830,1780146633000,-643.45,0.00013091,2]
[423467827,1780146633000,-574.86,0.00013086,2]
[423467832,1780146633000,-178.03,0.00013094,2]
[423467839,1780146633000,-572.6,0.00013094,2]
[423467838,1780146633000,-184.9,0.00013094,2]
[423467837,1780146633000,-574.86,0.00013094,2]
[423467841,1780146633000,-395.79,0.00013094,2]
[423467846,1780146633000,-572.6,0.000131,2]
[423467843,1780146633000,-572.6,0.00013094,2]
[423467847,1780146633000,-572.6,0.000131,2]
[423467844,1780146633000,-565.92,0.00013094,2]
[423467836,1780146633000,-575.08,0.00013094,2]
[423467845,1780146633000,-564.73,0.000131,2]
[423467848,1780146633000,-395.79,0.000131,2]
[423467849,1780146633000,-395.79,0.00013101,2]
[423467850,1780146633000,-603.92,0.00013101,2]
[423467851,1780146633000,-1587.28,0.00013101,2]
[423467854,1780146633000,-386.23,0.00013101,2]
[423467842,1780146633000,-643.71,0.00013094,2]
[423467834,1780146633000,-184.9,0.00013094,2]
[423467826,1780146633000,-572.6,0.00013086,2]
[423467828,1780146633000,-1585.1,0.00013086,2]
[423467810,1780146633000,-565.12,0.00013079,2]
[423467808,1780146633000,-387.94,0.00013078,2]
[423467809,1780146633000,-481.78,0.00013078,2]
[423467813,1780146633000,-1584.63,0.00013079,2]
[423467811,1780146633000,-639.57,0.00013079,2]
[423467812,1780146633000,-559.05,0.00013079,2]
[423467818,1780146633000,-395.79,0.00013081,2]
[423467822,1780146633000,-643.71,0.00013081,2]
[423467814,1780146633000,-1584.63,0.00013081,2]
[423467833,1780146633000,-395.79,0.00013094,2]
[423467819,1780146633000,-1584.63,0.00013081,2]
[423467816,1780146633000,-568.04,0.00013081,2]
[423467853,1780146633000,-481.78,0.00013101,2]
[423467815,1780146633000,-181.46,0.00013081,2]
[423467823,1780146633000,-395.79,0.00013081,2]
[423467821,1780146633000,-189.17566836,0.00013081,2]
[423467824,1780146633000,-1625.94,0.00013081,2]
[423467825,1780146633000,-574.86,0.00013086,2]
[423467829,1780146633000,-1584.63,0.00013091,2]
[423467835,1780146633000,-574.86,0.00013094,2]
[423467817,1780146633000,-574.86,0.00013081,2]
[423467820,1780146633000,-395.79,0.00013081,2]
[423467855,1780146633000,-572.6,0.00013101,2]
[423467856,1780146633000,-395.79,0.00013108,2]
[423467882,1780146633000,-500.0,0.00013398,2]
[423467883,1780146633000,-487.85521995,0.00013398,2]
[423467884,1780146633000,-363.97990357,0.00013398,2]
[423467885,1780146633000,-2500.0,0.00013398,2]
[423467892,1780146633000,-1900.0,0.000134,3]
[423467890,1780146633000,-163.0,0.000134,2]
[423467888,1780146633000,-2318.0,0.000134,2]
[423467852,1780146633000,-574.86,0.00013101,2]
[423467889,1780146633000,-10000.0,0.000134,2]
[423467880,1780146633000,-5700.55985304,0.000133,2]
[423467887,1780146633000,-18629.81259884,0.00013399,2]
[423467891,1780146633000,-1887.0,0.000134,2]
[423467896,1780146633000,-150.0,0.00013488,2]
[423467895,1780146633000,-150.0,0.00013488,2]
[423467894,1780146633000,-1495.08,0.00013485,2]
[423467898,1780146633000,-150.0,0.00013488,2]
[423467897,1780146633000,-150.34604901,0.00013488,2]
[423467901,1780146633000,-150.0,0.00013488,2]
[423467900,1780146633000,-150.0,0.00013488,2]
[423467899,1780146633000,-150.0,0.00013488,2]
[423467893,1780146633000,-13953.7912371,0.00013478,2]
[423467881,1780146633000,-581.93410333,0.00013397,2]
[423467886,1780146633000,-171.73115962,0.00013399,2]
[423467879,1780146633000,-8253.23138413,0.000133,2]
[423467878,1780146633000,-179.16,0.00013261,2]
[423467859,1780146633000,-395.79,0.00013108,2]
[423467858,1780146633000,-572.6,0.00013108,2]
[423467860,1780146633000,-184.9,0.00013108,2]
[423467861,1780146633000,-184.9,0.00013108,2]
[423467862,1780146633000,-1584.63,0.00013108,2]
[423467863,1780146633000,-420.0,0.00013119,2]
[423467866,1780146633000,-184.97,0.00013127,2]
[423467869,1780146633000,-500.0,0.00013225,2]
[423467867,1780146633000,-395.79,0.00013127,2]
[423467857,1780146633000,-1584.63,0.00013108,2]
[423467868,1780146633000,-1680.0,0.00013145,2]
[423467876,1780146633000,-500.0,0.00013225,2]
[423467877,1780146633000,-450.0,0.00013225,2]
[423467875,1780146633000,-500.0,0.00013225,2]
[423467874,1780146633000,-500.0,0.00013225,2]
[423467865,1780146633000,-29493.5363,0.00013125,2]
[423467873,1780146633000,-500.0,0.00013225,2]
[423467871,1780146633000,-500.0,0.00013225,2]
[423467864,1780146633000,-6813.0253,0.00013125,2]
[423467870,1780146633000,-500.0,0.00013225,2]
[423467872,1780146633000,-500.0,0.00013225,2]
[423467902,1780146634000,-150.0,0.00013488,2]
[423467903,1780146634000,-150.0,0.00013488,2]
[423467904,1780146634000,-150.0,0.00013488,2]
[423467906,1780146634000,-26480.87154977,0.00013498,2]
[423467905,1780146634000,-43882.72949304,0.00013498,2]
[423467907,1780146634000,-13276.64723791,0.00013498,2]
[423467911,1780146637000,-474.41,0.00012287,2]
[423467913,1780146637000,-7.15,0.00013498,2]
[423467912,1780146637000,-500.0,0.00013082,2]
[423467914,1780146638000,-1470.52495761,0.00013498,2]
[423467928,1780146645000,-900.0,0.00013082,2]
[423467929,1780146645000,-340.74839997,0.00013498,2]
[423467930,1780146645000,-422.60939855,0.00013498,2]
[423467931,1780146646000,-2688.67,0.00013498,2]
[423467932,1780146646000,-7732.80791935,0.00013498,2]
[423467947,1780146648000,-500.0,0.00012591,2]
[423467951,1780146648000,-18367.88608685,0.00013498,2]
[423467949,1780146648000,-11235.50113,0.00013498,2]
[423467950,1780146648000,-12717.62926468,0.00013498,2]
[423467948,1780146648000,-2826.79869269,0.00013498,2]
[423467963,1780147008000,394.06885996,0.0002,120]
[423467967,1780147095000,540.04,0.00028082,120]
[423467979,1780147741000,1000.0,0.00028081,120]
[423468005,1780147832000,-894.49,0.00011227,2]
[423468004,1780147832000,-1252.65,0.00011227,2]
[423468002,1780147832000,-156.82,0.000111,2]
[423467999,1780147832000,-150.0,0.00010959,2]
[423467998,1780147832000,-156.82,0.00010876,2]
[423467996,1780147832000,-156.82,0.00010764,2]
[423468001,1780147832000,-584.18,0.00011098,2]
[423467994,1780147832000,-3300.64547168,0.00010694,2]
[423467995,1780147832000,-5106.45452832,0.00010694,2]
[423467997,1780147832000,-584.18,0.00010828,2]
[423468003,1780147832000,-156.82,0.00011212,2]
[423468000,1780147832000,-156.82,0.00010988,2]
[423467993,1780147832000,-1200.0,0.00010693,2]
[423467990,1780147832000,-500.62216024,0.0001,2]
[423467991,1780147832000,-156.82,0.00010652,2]
[423468009,1780147832000,-6457.0,0.00011415,2]
[423468014,1780147832000,-156.82,0.0001166,2]
[423467992,1780147832000,-2000.0,0.00010652,2]
[423468008,1780147832000,-584.18,0.00011369,2]
[423468025,1780147832000,-314.69518012,0.00011748,2]
[423468006,1780147832000,-3107.79,0.00011324,2]
[423468024,1780147832000,-2183.58260011,0.00011748,2]
[423468020,1780147832000,-500.0,0.00011747,2]
[423468021,1780147832000,-4409.08739672,0.00011748,2]
[423468023,1780147832000,-287.06431718,0.00011748,2]
[423468019,1780147832000,-263.03029339,0.00011747,2]
[423468018,1780147832000,-404.7859325,0.00011747,2]
[423468022,1780147832000,-25898.28915638,0.00011748,2]
[423468017,1780147832000,-341.49865397,0.00011747,2]
[423468015,1780147832000,-170.1,0.00011674,2]
[423468011,1780147832000,-150.0,0.00011546,2]
[423468007,1780147832000,-156.82,0.00011324,2]
[423468010,1780147832000,-156.82,0.00011436,2]
[423468012,1780147832000,-156.82,0.00011548,2]
[423468016,1780147832000,-500.0,0.00011729,2]
[423468013,1780147832000,-584.18,0.0001164,2]
[423468062,1780147838000,-299.99,0.00012087,2]
[423468063,1780147838000,-999.99,0.00012087,2]
[423468059,1780147838000,-150.99,0.00012087,2]
[423468056,1780147838000,-2000.0,0.00011984,2]
[423468057,1780147838000,-9999.99,0.00012087,2]
[423468061,1780147838000,-9999.99,0.00012087,2]
[423468060,1780147838000,-499.99,0.00012087,2]
[423468066,1780147838000,-10249.86,0.00012087,2]
[423468065,1780147838000,-4999.99,0.00012087,2]
[423468064,1780147838000,-1630.77,0.00012087,2]
[423468052,1780147838000,-470.12,0.00011853,2]
[423468067,1780147838000,-7724.44,0.00012087,2]
[423468055,1780147838000,-173.65,0.00011922,2]
[423468054,1780147838000,-584.18,0.0001191,2]
[423468047,1780147838000,-702.95,0.00011763,2]
[423468050,1780147838000,-13659.93918004,0.00011788,2]
[423468049,1780147838000,-200.0,0.00011781,2]
[423468051,1780147838000,-1000.0,0.00011829,2]
[423468048,1780147838000,-156.82,0.00011773,2]
[423468045,1780147838000,-76221.39044949,0.00011748,2]
[423468046,1780147838000,-1680.0,0.00011762,2]
[423468043,1780147838000,-500.0,0.00010693,2]
[423468044,1780147838000,-596.28918949,0.00010693,2]
[423468041,1780147838000,-500.0,0.00010693,2]
[423468042,1780147838000,-500.0,0.00010693,2]
[423468040,1780147838000,-500.0,0.00010693,2]
[423468039,1780147838000,-500.0,0.00010693,2]
[423468038,1780147838000,-500.0,0.00010693,2]
[423468069,1780147838000,-1499.0,0.00012138,2]
[423468053,1780147838000,-215.58360558,0.000119,2]
[423468068,1780147838000,-13659.93918001,0.00012134,2]
[423468058,1780147838000,-24455.59,0.00012087,2]
[423468071,1780147838000,-574.86,0.00012251,2]
[423468070,1780147838000,-500.0,0.00012251,2]
[423468100,1780147838000,-1196.0305,0.00012879,2]
[423468099,1780147838000,-22799.93006854,0.00012851,2]
[423468091,1780147838000,-18309.48,0.00012757,2]
[423468092,1780147838000,-173.65,0.00012758,2]
[423468097,1780147838000,-3000.0,0.00012808,2]
[423468098,1780147838000,-13659.93918001,0.00012825,2]
[423468093,1780147838000,-7530.82803603,0.00012779,2]
[423468095,1780147838000,-500.0,0.00012799,2]
[423468094,1780147838000,-2500.0,0.00012793,2]
[423468096,1780147838000,-13100.0,0.000128,4]
[423468088,1780147838000,-8700.0,0.000127,4]
[423468089,1780147838000,-159.62619924,0.0001271,2]
[423468090,1780147838000,-151.0,0.00012755,2]
[423468087,1780147838000,-150.34873258,0.00012696,2]
[423468101,1780147838000,-5000.0,0.00012879,2]
[423468081,1780147838000,-1174.0,0.000124,2]
[423468084,1780147838000,-500.0,0.00012525,2]
[423468072,1780147838000,-542.68,0.00012259,2]
[423468073,1780147838000,-574.86,0.00012259,2]
[423468077,1780147838000,-179.88,0.00012287,2]
[423468076,1780147838000,-481.78,0.00012269,2]
[423468078,1780147838000,-574.86,0.00012287,2]
[423468074,1780147838000,-572.6,0.00012259,2]
[423468080,1780147838000,-173.65,0.0001234,2]
[423468083,1780147838000,-13659.93918001,0.0001248,2]
[423468086,1780147838000,-255.0,0.00012609,2]
[423468075,1780147838000,-184.9,0.00012269,2]
[423468082,1780147838000,-159.62619924,0.00012447,2]
[423468085,1780147838000,-4300.0,0.000126,4]
[423468079,1780147838000,-574.86,0.00012287,2]
[423468129,1780147839000,-156.87114969,0.00012951,2]
[423468143,1780147839000,-150.0,0.00012951,2]
[423468133,1780147839000,-500.0,0.00012951,2]
[423468134,1780147839000,-500.0,0.00012951,2]
[423468136,1780147839000,-500.0,0.00012951,2]
[423468139,1780147839000,-500.0,0.00012951,2]
[423468135,1780147839000,-500.0,0.00012951,2]
[423468138,1780147839000,-500.0,0.00012951,2]
[423468141,1780147839000,-621.42824537,0.00012951,2]
[423468140,1780147839000,-500.0,0.00012951,2]
[423468142,1780147839000,-262.52274324,0.00012951,2]
[423468137,1780147839000,-500.0,0.00012951,2]
[423468150,1780147839000,-150.0,0.00012951,2]
[423468144,1780147839000,-150.0,0.00012951,2]
[423468145,1780147839000,-150.0,0.00012951,2]
[423468148,1780147839000,-150.0,0.00012951,2]
[423468147,1780147839000,-150.0,0.00012951,2]
[423468152,1780147839000,-150.0,0.00012951,2]
[423468151,1780147839000,-150.0,0.00012951,2]
[423468149,1780147839000,-209.03326579,0.00012951,2]
[423468154,1780147839000,-275.39800743,0.00012951,2]
[423468153,1780147839000,-154.56670401,0.00012951,2]
[423468155,1780147839000,-150.0,0.00012951,2]
[423468157,1780147839000,-150.0,0.00012951,2]
[423468127,1780147839000,-150.0,0.00012951,2]
[423468146,1780147839000,-248.8833514,0.00012951,2]
[423468132,1780147839000,-500.0,0.00012951,2]
[423468114,1780147839000,-500.0,0.00012951,2]
[423468131,1780147839000,-500.0,0.00012951,2]
[423468156,1780147839000,-150.0,0.00012951,2]
[423468103,1780147839000,-370.62005919,0.00012879,2]
[423468102,1780147839000,-2092.75179619,0.00012879,2]
[423468109,1780147839000,-500.0,0.00012951,2]
[423468107,1780147839000,-17500.0,0.000129,4]
[423468106,1780147839000,-735.92710811,0.00012898,2]
[423468108,1780147839000,-2351.0,0.00012938,2]
[423468105,1780147839000,-201.61,0.00012892,2]
[423468104,1780147839000,-1732.08919103,0.00012879,2]
[423468110,1780147839000,-500.0,0.00012951,2]
[423468112,1780147839000,-500.0,0.00012951,2]
[423468111,1780147839000,-500.0,0.00012951,2]
[423468130,1780147839000,-500.0,0.00012951,2]
[423468113,1780147839000,-500.0,0.00012951,2]
[423468115,1780147839000,-500.0,0.00012951,2]
[423468117,1780147839000,-500.0,0.00012951,2]
[423468116,1780147839000,-500.0,0.00012951,2]
[423468120,1780147839000,-500.0,0.00012951,2]
[423468121,1780147839000,-242.0,0.00012951,2]
[423468118,1780147839000,-500.0,0.00012951,2]
[423468122,1780147839000,-500.0,0.00012951,2]
[423468123,1780147839000,-500.0,0.00012951,2]
[423468126,1780147839000,-150.0,0.00012951,2]
[423468124,1780147839000,-158.79341703,0.00012951,2]
[423468125,1780147839000,-150.0,0.00012951,2]
[423468128,1780147839000,-150.0,0.00012951,2]
[423468119,1780147839000,-500.0,0.00012951,2]
[423468158,1780147839000,-171.5958302,0.00012951,2]
[423468193,1780147839000,-500.0,0.00012979,2]
[423468163,1780147839000,-500.0,0.00012951,2]
[423468191,1780147839000,-500.0,0.00012979,2]
[423468217,1780147839000,-151.0,0.00012979,2]
[423468192,1780147839000,-500.0,0.00012979,2]
[423468195,1780147839000,-500.0,0.00012979,2]
[423468194,1780147839000,-500.0,0.00012979,2]
[423468202,1780147839000,-500.0,0.00012979,2]
[423468201,1780147839000,-500.0,0.00012979,2]
[423468203,1780147839000,-500.0,0.00012979,2]
[423468198,1780147839000,-500.0,0.00012979,2]
[423468196,1780147839000,-500.0,0.00012979,2]
[423468197,1780147839000,-500.0,0.00012979,2]
[423468204,1780147839000,-500.0,0.00012979,2]
[423468190,1780147839000,-500.0,0.00012979,2]
[423468199,1780147839000,-500.0,0.00012979,2]
[423468205,1780147839000,-500.0,0.00012979,2]
[423468206,1780147839000,-500.0,0.00012979,2]
[423468210,1780147839000,-500.0,0.00012979,2]
[423468209,1780147839000,-500.0,0.00012979,2]
[423468212,1780147839000,-500.0,0.00012979,2]
[423468215,1780147839000,-500.0,0.00012979,2]
[423468214,1780147839000,-500.0,0.00012979,2]
[423468211,1780147839000,-500.0,0.00012979,2]
[423468208,1780147839000,-500.0,0.00012979,2]
[423468207,1780147839000,-500.0,0.00012979,2]
[423468213,1780147839000,-500.0,0.00012979,2]
[423468167,1780147839000,-500.0,0.00012951,2]
[423468200,1780147839000,-500.0,0.00012979,2]
[423468184,1780147839000,-1500000.0,0.00012979,2]
[423468216,1780147839000,-298.342053,0.00012979,2]
[423468187,1780147839000,-500.0,0.00012979,2]
[423468186,1780147839000,-500.0,0.00012979,2]
[423468162,1780147839000,-500.0,0.00012951,2]
[423468159,1780147839000,-500.0,0.00012951,2]
[423468161,1780147839000,-500.0,0.00012951,2]
[423468168,1780147839000,-500.0,0.00012951,2]
[423468166,1780147839000,-500.0,0.00012951,2]
[423468164,1780147839000,-500.0,0.00012951,2]
[423468165,1780147839000,-500.0,0.00012951,2]
[423468170,1780147839000,-500.0,0.00012951,2]
[423468169,1780147839000,-500.0,0.00012951,2]
[423468180,1780147839000,-151.0,0.00012976,2]
[423468178,1780147839000,-209.35689879,0.00012969,2]
[423468172,1780147839000,-500.0,0.00012951,2]
[423468160,1780147839000,-500.0,0.00012951,2]
[423468171,1780147839000,-500.0,0.00012951,2]
[423468189,1780147839000,-500.0,0.00012979,2]
[423468185,1780147839000,-500.0,0.00012979,2]
[423468188,1780147839000,-500.0,0.00012979,2]
[423468176,1780147839000,-500.0,0.00012951,2]
[423468182,1780147839000,-400.0,0.00012979,2]
[423468183,1780147839000,-250.0,0.00012979,2]
[423468177,1780147839000,-403.39597363,0.00012951,2]
[423468173,1780147839000,-500.0,0.00012951,2]
[423468175,1780147839000,-500.0,0.00012951,2]
[423468179,1780147839000,-159.62619924,0.00012972,2]
[423468174,1780147839000,-632.91659185,0.00012951,2]
[423468181,1780147839000,-151.0,0.00012976,2]
[423468261,1780147840000,-574.86,0.00013108,2]
[423468253,1780147840000,-574.86,0.00013108,2]
[423468256,1780147840000,-571.65,0.00013108,2]
[423468254,1780147840000,-395.79,0.00013108,2]
[423468245,1780147840000,-395.79,0.00013091,2]
[423468258,1780147840000,-574.86,0.00013108,2]
[423468251,1780147840000,-395.79,0.000131,2]
[423468252,1780147840000,-572.6,0.00013101,2]
[423468249,1780147840000,-574.86,0.00013094,2]
[423468247,1780147840000,-395.79,0.00013094,2]
[423468259,1780147840000,-391.03,0.00013108,2]
[423468255,1780147840000,-569.31,0.00013108,2]
[423468265,1780147840000,-1584.63,0.00013127,2]
[423468257,1780147840000,-1584.63,0.00013108,2]
[423468262,1780147840000,-395.79,0.00013108,2]
[423468263,1780147840000,-477.29,0.00013112,2]
[423468264,1780147840000,-395.79,0.00013127,2]
[423468266,1780147840000,-1584.63,0.00013127,2]
[423468269,1780147840000,-735.92710806,0.00013232,2]
[423468267,1780147840000,-13659.93918001,0.00013171,2]
[423468270,1780147840000,-702.95,0.00013234,2]
[423468268,1780147840000,-173.65,0.00013177,2]
[423468272,1780147840000,-500.94201781,0.00013249,2]
[423468243,1780147840000,-566.45,0.00013086,2]
[423468271,1780147840000,-159.62619924,0.00013235,2]
[423468260,1780147840000,-1585.14,0.00013108,2]
[423468246,1780147840000,-1584.63,0.00013094,2]
[423468232,1780147840000,-1584.63,0.00013081,2]
[423468242,1780147840000,-672.39,0.00013086,2]
[423468274,1780147840000,-2000.0,0.00013316,2]
[423468220,1780147840000,-5681.6582,0.00013,2]
[423468219,1780147840000,-151.0,0.00012998,2]
[423468218,1780147840000,-151.0,0.00012997,2]
[423468222,1780147840000,-13962.44804907,0.00013,15]
[423468221,1780147840000,-24337.6393525,0.00013,5]
[423468223,1780147840000,-5419.13555538,0.0001305,2]
[423468226,1780147840000,-820.17,0.00013071,2]
[423468225,1780147840000,-655.6,0.0001307,2]
[423468224,1780147840000,-575.08,0.00013068,2]
[423468228,1780147840000,-395.79,0.00013071,2]
[423468229,1780147840000,-395.79,0.00013071,2]
[423468227,1780147840000,-172.47512054,0.00013071,2]
[423468234,1780147840000,-395.8,0.00013081,2]
[423468233,1780147840000,-1584.63,0.00013081,2]
[423468238,1780147840000,-500.0,0.00013082,2]
[423468230,1780147840000,-22799.93006848,0.00013079,2]
[423468231,1780147840000,-571.43,0.00013081,2]
[423468237,1780147840000,-574.86,0.00013081,2]
[423468236,1780147840000,-574.86,0.00013081,2]
[423468239,1780147840000,-1000.0,0.00013082,2]
[423468240,1780147840000,-7530.82803598,0.00013082,2]
[423468241,1780147840000,-574.86,0.00013086,2]
[423468248,1780147840000,-574.86,0.00013094,2]
[423468244,1780147840000,-1584.63,0.00013091,2]
[423468250,1780147840000,-699.42,0.00013094,2]
[423468273,1780147840000,-22799.93006848,0.00013306,2]
[423468275,1780147840000,-176.1321593,0.00013334,2]
[423468276,1780147840000,-211.51532558,0.00013334,2]
[423468305,1780147840000,-151.0,0.00013434,2]
[423468306,1780147840000,-151.0,0.00013434,2]
[423468308,1780147840000,-153.422563,0.00013434,2]
[423468311,1780147840000,-151.6585161,0.00013434,2]
[423468310,1780147840000,-140773.1248258,0.00013434,2]
[423468312,1780147840000,-151.0,0.00013434,2]
[423468313,1780147840000,-151.0,0.00013434,2]
[423468314,1780147840000,-150.0,0.00013436,2]
[423468315,1780147840000,-150.0,0.00013441,2]
[423468316,1780147840000,-150.0,0.00013444,2]
[423468319,1780147840000,-150.0,0.0001346,2]
[423468317,1780147840000,-350.0,0.00013451,2]
[423468318,1780147840000,-150.0,0.00013458,2]
[423468321,1780147840000,-150.0,0.00013476,2]
[423468322,1780147840000,-150.0,0.00013482,2]
[423468324,1780147840000,-551.81763463,0.00013497,2]
[423468323,1780147840000,-150.0,0.00013493,2]
[423468330,1780147840000,-448.14641804,0.00013498,2]
[423468326,1780147840000,-1000.0,0.00013498,2]
[423468328,1780147840000,-1000.0,0.00013498,2]
[423468332,1780147840000,-200.0,0.00013498,2]
[423468325,1780147840000,-350.0,0.00013498,2]
[423468329,1780147840000,-1000.0,0.00013498,2]
[423468331,1780147840000,-290.85141829,0.00013498,2]
[423468327,1780147840000,-1000.0,0.00013498,2]
[423468309,1780147840000,-39053.4846582,0.00013434,2]
[423468307,1780147840000,-151.0,0.00013434,2]
[423468320,1780147840000,-150.0,0.00013463,2]
[423468304,1780147840000,-12201.3993095,0.00013434,2]
[423468279,1780147840000,-7530.82803598,0.00013385,2]
[423468302,1780147840000,-3204.6413245,0.00013434,2]
[423468283,1780147840000,-150.0,0.00013389,2]
[423468278,1780147840000,-151.0,0.00013334,2]
[423468282,1780147840000,-150.0,0.00013389,2]
[423468280,1780147840000,-150.0,0.00013389,2]
[423468277,1780147840000,-559.75628366,0.00013334,2]
[423468281,1780147840000,-150.0,0.00013389,2]
[423468284,1780147840000,-150.0,0.00013389,2]